bitfinex/quotes_BTCUSD_20251010
["timestamp","ask_amount","ask_price","bid_price","bid_amount"]
[1760129151814,0.98224735,117320.0,117310.0,0.002]
[1760129152872,0.28000735,117320.0,117310.0,0.002]
[1760129153103,0.94966391,117320.0,117310.0,0.002]
[1760129153721,0.86086391,117320.0,117310.0,0.002]
[1760129153950,0.17050298,117300.0,117290.0,0.13904339]
[1760129154170,0.18068298,117300.0,117290.0,0.00015057]
[1760129154439,0.91012298,117300.0,117290.0,0.00015057]
[1760129154651,0.95073298,117300.0,117290.0,0.00015057]
[1760129156047,0.95962629,117300.0,117290.0,0.00115057]
[1760129156273,0.95962629,117300.0,117290.0,0.00315057]
[1760129156274,1.04386874,117300.0,117290.0,0.00315057]
[1760129156734,0.95966629,117300.0,117290.0,0.00315057]
[1760129157227,0.95966629,117300.0,117290.0,0.00115057]
[1760129157687,0.25794629,117300.0,117290.0,0.00115057]
[1760129157912,0.95934629,117300.0,117290.0,0.00115057]
[1760129158970,0.95934629,117300.0,117290.0,0.00015057]
[1760129159175,0.95934629,117300.0,117290.0,0.00115057]
[1760129159176,1.04358874,117300.0,117290.0,0.00115057]
[1760129159390,1.04358874,117300.0,117290.0,0.00215057]
[1760129160257,0.95890629,117300.0,117290.0,0.00215057]
[1760129161292,0.95898629,117300.0,117290.0,0.00215057]
[1760129161492,0.95878629,117300.0,117290.0,0.00215057]
[1760129161699,0.17053206,117280.0,117270.0,0.19143613]
[1760129161903,0.53109272,117280.0,117270.0,0.53143613]
[1760129162154,0.55751272,117280.0,117270.0,0.55896613]
[1760129162362,0.38698066,117280.0,117270.0,0.59958613]
[1760129162744,0.01508066,117280.0,117270.0,0.55896613]
[1760129162957,0.36056066,117280.0,117270.0,0.60258613]
[1760129163172,0.36048066,117280.0,117270.0,0.60258613]
[1760129163606,0.00015066,117280.0,117270.0,0.60258613]
[1760129163818,0.34551066,117280.0,117270.0,0.60258613]
[1760129164259,0.24044143,117300.0,117270.0,0.60258613]
[1760129164260,0.05394568,117320.0,117290.0,0.00852587]
[1760129164480,0.05394568,117320.0,117290.0,1.40520835]
[1760129164481,0.0888,117300.0,117290.0,1.40520835]
[1760129164712,0.0888,117300.0,117290.0,1.45310835]
[1760129165139,0.0888,117300.0,117290.0,1.49372835]
[1760129166227,0.0001508,117320.0,117310.0,0.17048844]
[1760129166437,0.3453908,117320.0,117310.0,0.19085844]
[1760129166644,0.3453908,117320.0,117310.0,0.25900844]
[1760129167068,0.3867408,117320.0,117310.0,0.21838844]
[1760129167300,0.3603208,117320.0,117310.0,0.25900844]
[1760129167955,0.53079471,117320.0,117310.0,0.25900844]
[1760129168173,0.3603208,117320.0,117310.0,0.25900844]
[1760129168425,0.53079471,117320.0,117310.0,0.26000844]
[1760129168645,0.53083471,117320.0,117310.0,0.26000844]
[1760129169180,0.3603608,117320.0,117310.0,0.26000844]
[1760129169367,0.0151208,117320.0,117310.0,0.21800844]
[1760129169577,0.3597608,117320.0,117310.0,0.21800844]
[1760129170446,0.0151208,117320.0,117310.0,0.21800844]
[1760129170666,0.3447908,117320.0,117310.0,0.23908275]
[1760129170892,0.0001908,117320.0,117310.0,0.23908275]
[1760129171338,0.3446708,117320.0,117310.0,0.21800844]
[1760129172196,0.3445508,117320.0,117310.0,0.21800844]
[1760129172426,0.2556708,117320.0,117310.0,0.21800844]
[1760129172644,0.3444708,117320.0,117310.0,0.21800844]
[1760129172862,0.0001908,117320.0,117310.0,0.21700844]
[1760129173084,0.3443908,117320.0,117310.0,0.21700844]
[1760129173302,0.3443908,117320.0,117310.0,0.21800844]
[1760129174359,0.3443908,117320.0,117310.0,0.21700844]
[1760129174577,0.3443908,117320.0,117310.0,0.21900844]
[1760129174914,0.0001908,117320.0,117310.0,0.21900844]
[1760129175123,0.3443508,117320.0,117310.0,0.21900844]
[1760129177271,0.3443508,117320.0,117310.0,0.17700844]
[1760129177721,0.2549908,117320.0,117310.0,0.17700844]
[1760129177964,0.3437908,117320.0,117310.0,0.17700844]
[1760129179129,0.0001908,117320.0,117310.0,0.17700844]
[1760129179367,0.3437908,117320.0,117310.0,0.17700844]
[1760129180115,0.17668033,117330.0,117320.0,0.17047391]
[1760129180363,0.64714033,117330.0,117320.0,0.17047391]
[1760129180597,0.20310033,117330.0,117320.0,0.17047391]
[1760129180815,0.68948033,117330.0,117320.0,0.17047391]
[1760129181298,0.94388033,117330.0,117320.0,0.17047391]
[1760129181534,1.54916537,117330.0,117320.0,0.17147391]
[1760129182006,1.54916537,117330.0,117320.0,0.001]
[1760129182227,2.15445041,117330.0,117320.0,0.001]
[1760129182697,6.98013441,117330.0,117320.0,0.001]
[1760129183371,0.17048844,117310.0,117300.0,0.17902309]
[1760129183587,5.76888904,117310.0,117300.0,0.17917389]
[1760129183849,0.94320504,117310.0,117300.0,0.17917389]
[1760129184088,1.11369348,117310.0,117300.0,0.17917389]
[1760129184769,0.65428605,117310.0,117300.0,0.17917389]
[1760129184976,0.85949348,117310.0,117300.0,0.13717389]
[1760129185247,0.85953348,117310.0,117300.0,0.13817389]
[1760129185931,1.11369348,117310.0,117300.0,0.14669903]
[1760129186174,1.55773348,117310.0,117300.0,0.0011508]
[1760129187785,1.64197593,117310.0,117300.0,0.0011508]
[1760129188011,7.71294497,117310.0,117300.0,0.0011508]
[1760129188228,7.72631663,117310.0,117300.0,0.0011508]
[1760129189790,7.72631663,117310.0,117300.0,0.0001508]
[1760129190006,7.72631663,117310.0,117300.0,0.0011508]
[1760129190442,8.02631663,117310.0,117300.0,0.0001508]
[1760129190651,7.93711663,117310.0,117300.0,0.0001508]
[1760129190909,8.38215663,117310.0,117300.0,0.0001508]
[1760129191833,7.77687159,117310.0,117300.0,0.0001508]
[1760129192804,0.77580256,117290.0,117270.0,0.19829164]
[1760129193055,0.59835206,117280.0,117270.0,0.1705466]
[1760129193269,1.2036371,117280.0,117270.0,0.1705466]
[1760129194109,1.2036371,117280.0,117270.0,0.1715466]
[1760129194533,0.59835206,117280.0,117270.0,0.1705466]
[1760129195195,0.25933206,117280.0,117270.0,0.1705466]
[1760129195865,0.25933206,117280.0,117270.0,0.1715466]
[1760129196321,0.51197206,117280.0,117270.0,0.1981266]
[1760129196757,0.51197206,117280.0,117270.0,0.1715466]
[1760129196965,0.52120909,117280.0,117270.0,0.1715466]
[1760129197591,0.52120909,117280.0,117270.0,0.1981266]
[1760129198017,0.52120909,117280.0,117270.0,0.1715466]
[1760129199070,1.12649413,117280.0,117270.0,0.001]
[1760129199755,1.21073658,117280.0,117270.0,0.001]
[1760129200484,0.77583164,117270.0,117250.0,0.51877878]
[1760129200718,0.44604114,117260.0,117250.0,0.34015066]
[1760129200931,0.44604114,117260.0,117250.0,0.51072635]
[1760129201368,0.27548,117260.0,117250.0,0.51072635]
[1760129202025,0.27548,117260.0,117250.0,0.53830635]
[1760129202684,0.36424,117260.0,117250.0,1.16281139]
[1760129202916,0.36424,117260.0,117250.0,1.16481139]
[1760129203379,0.5258666,117270.0,117260.0,0.17056114]
[1760129203614,0.00923703,117280.0,117270.0,0.1705466]
[1760129203848,0.18811804,117290.0,117280.0,0.17053206]
[1760129204079,0.0888,117280.0,117270.0,0.83396164]
[1760129204302,0.0888,117280.0,117270.0,0.86054164]
[1760129204990,0.55243761,117290.0,117280.0,0.17053206]
[1760129205216,0.55243761,117290.0,117270.0,0.86054164]
[1760129205217,0.08884,117280.0,117270.0,0.79505164]
[1760129205445,0.08884,117280.0,117270.0,0.82163164]
[1760129205682,0.29590006,117290.0,117270.0,0.82163164]
[1760129205910,0.34064,117280.0,117270.0,0.82263164]
[1760129206641,0.34064,117280.0,117270.0,0.82163164]
[1760129206858,0.36392,117280.0,117270.0,0.82163164]
[1760129207485,0.53445206,117280.0,117270.0,0.2163466]
[1760129207685,0.36396,117280.0,117270.0,0.2163466]
[1760129207962,0.5855232,117280.0,117270.0,0.2163466]
[1760129208173,0.55398206,117280.0,117270.0,0.1743466]
[1760129208385,0.55398206,117280.0,117270.0,0.1753466]
[1760129208599,0.21338206,117280.0,117270.0,0.1753466]
[1760129208819,0.55370206,117280.0,117270.0,0.1743466]
[1760129209034,0.59411206,117280.0,117270.0,0.1715466]
[1760129209894,0.55370206,117280.0,117270.0,0.1715466]
[1760129210528,1.1589871,117280.0,117270.0,0.1715466]
[1760129211392,1.1981171,117280.0,117270.0,0.001]
[1760129211856,1.22187458,117280.0,117270.0,0.001]
[1760129212298,1.84555835,117280.0,117270.0,0.001]
[1760129212576,1.85354722,117280.0,117270.0,0.001]
[1760129212814,1.26424034,117280.0,117270.0,0.001]
[1760129213032,0.17056114,117260.0,117250.0,0.17925476]
[1760129213264,0.94396504,117260.0,117250.0,0.17925476]
[1760129213487,0.64061787,117260.0,117250.0,0.17925476]
[1760129213716,0.08756,117260.0,117250.0,0.20640476]
[1760129213973,1.19097164,117270.0,117260.0,0.17056114]
[1760129214204,0.32631114,117260.0,117250.0,0.00015066]
[1760129214441,0.93159618,117260.0,117250.0,0.17072635]
[1760129214664,1.18263618,117260.0,117250.0,0.17072635]
[1760129215122,1.01207504,117260.0,117250.0,0.17072635]
[1760129215368,0.97294504,117260.0,117250.0,0.17072635]
[1760129215696,1.18263618,117260.0,117250.0,0.17172635]
[1760129215886,1.01207504,117260.0,117250.0,0.12972635]
[1760129216120,6.02673294,117260.0,117250.0,0.001]
[1760129216991,6.11097539,117260.0,117250.0,0.001]
[1760129217206,6.02673294,117260.0,117250.0,0.001]
[1760129218064,5.4214479,117260.0,117250.0,0.001]
[1760129218290,6.02673294,117260.0,117250.0,0.001]
[1760129219452,6.03472581,117260.0,117250.0,0.001]
[1760129219637,6.11896826,117260.0,117250.0,0.001]
[1760129220286,5.55267433,117260.0,117250.0,0.001]
[1760129220503,6.15795937,117260.0,117250.0,0.001]
[1760129220722,0.17057569,117250.0,117240.0,0.17058926]
[1760129220952,4.93234676,117250.0,117240.0,0.1710923]
[1760129221179,0.46265276,117250.0,117240.0,1.46890238]
[1760129221431,0.69476,117250.0,117240.0,0.86361734]
[1760129221652,0.37423,117260.0,117250.0,0.17057569]
[1760129221869,0.75873261,117260.0,117250.0,0.82240073]
[1760129222334,0.75873261,117260.0,117250.0,0.86310073]
[1760129222561,0.10725261,117260.0,117250.0,0.86310073]
[1760129223228,0.35765261,117260.0,117250.0,0.86310073]
[1760129223493,0.35765261,117260.0,117250.0,0.82110073]
[1760129223716,0.35761261,117260.0,117250.0,0.82110073]
[1760129223856,0.35761261,117260.0,117250.0,0.82210073]
[1760129224080,0.3392,117260.0,117250.0,0.82210073]
[1760129224481,0.04187488,117280.0,117270.0,0.1705466]
[1760129224868,0.43416853,117280.0,117270.0,0.2170866]
[1760129225070,0.43416853,117280.0,117270.0,0.82237164]
[1760129225303,0.51578059,117280.0,117260.0,0.23076833]
[1760129225507,1.00271059,117280.0,117260.0,0.79535337]
[1760129225712,0.76275853,117280.0,117270.0,0.2170866]
[1760129225951,0.96002059,117280.0,117270.0,0.2170866]
[1760129226164,0.96002059,117280.0,117270.0,0.1705466]
[1760129226380,0.96002059,117280.0,117270.0,0.2170866]
[1760129226381,0.09500853,117280.0,117270.0,0.2170866]
[1760129226589,0.02644365,117280.0,117270.0,1.80835668]
[1760129226798,0.36540365,117280.0,117270.0,0.68202905]
[1760129226981,0.11528365,117280.0,117270.0,1.89259913]
[1760129227239,0.3574119,117280.0,117270.0,1.89359913]
[1760129227860,0.3574119,117280.0,117270.0,0.68202905]
[1760129228070,0.3574119,117280.0,117270.0,1.89259913]
[1760129228284,4e-05,117280.0,117270.0,1.90986424]
[1760129228498,0.12324,117280.0,117270.0,2.0231382]
[1760129228690,0.12324,117280.0,117270.0,0.81156812]
[1760129228691,4e-05,117280.0,117270.0,0.81156812]
[1760129228935,0.2642,117280.0,117270.0,2.0221382]
[1760129229139,0.2642,117280.0,117270.0,2.0231382]
[1760129229359,4e-05,117280.0,117270.0,2.0241382]
[1760129229568,0.25,117280.0,117270.0,0.81356812]
[1760129229797,0.25,117280.0,117270.0,0.5997866]
[1760129230016,0.25,117280.0,117270.0,1.20507164]
[1760129230220,0.25,117280.0,117270.0,1.20407164]
[1760129230654,0.29556,117280.0,117270.0,0.5580866]
[1760129230870,0.31395877,117280.0,117270.0,0.5590866]
[1760129231107,0.32194529,117280.0,117270.0,0.5580866]
[1760129231318,0.31395877,117280.0,117270.0,0.5160866]
[1760129231529,1.13246587,117280.0,117270.0,0.002]
[1760129231753,1.13246587,117280.0,117260.0,0.17055899]
[1760129231754,0.1705466,117270.0,117260.0,0.17055899]
[1760129231964,0.82313164,117270.0,117260.0,0.17055899]
[1760129232168,0.86582164,117270.0,117260.0,0.17055899]
[1760129232605,0.2605366,117270.0,117260.0,0.17056114]
[1760129232761,0.95006409,117270.0,117250.0,0.15662447]
[1760129232974,0.40194,117260.0,117250.0,0.15662447]
[1760129233173,0.40194,117260.0,117250.0,0.47710447]
[1760129233374,0.38598,117260.0,117250.0,0.16412447]
[1760129233577,1.03395504,117260.0,117250.0,0.13710447]
[1760129234024,1.03395504,117260.0,117250.0,0.50412447]
[1760129234025,0.38598,117260.0,117250.0,0.50412447]
[1760129234231,0.2971,117260.0,117250.0,0.52364447]
[1760129234397,0.38594,117260.0,117250.0,0.52464447]
[1760129234732,0.38594,117260.0,117250.0,0.49862447]
[1760129235164,0.42863,117260.0,117250.0,0.49862447]
[1760129235436,0.38594,117260.0,117250.0,0.52564447]
[1760129235904,0.38594,117260.0,117250.0,0.47910447]
[1760129236362,0.42863,117260.0,117250.0,0.47910447]
[1760129237313,0.59919114,117260.0,117250.0,0.13710447]
[1760129237556,0.01887,117280.0,117270.0,0.1705466]
[1760129237790,0.40061988,117280.0,117270.0,0.1975666]
[1760129238002,0.44330988,117280.0,117270.0,0.1705466]
[1760129238219,0.61384194,117280.0,117270.0,0.1705466]
[1760129238655,0.61384194,117280.0,117260.0,0.18734114]
[1760129238929,0.02057,117270.0,117260.0,0.12856114]
[1760129239139,0.2605366,117270.0,117260.0,0.12856114]
[1760129239778,0.2605366,117270.0,117260.0,0.17056114]
[1760129239987,0.2605366,117270.0,117250.0,0.15662447]
[1760129240197,0.26793,117260.0,117250.0,0.13710447]
[1760129240405,0.29466,117260.0,117250.0,0.13710447]
[1760129241218,0.26793,117260.0,117250.0,0.22434447]
[1760129241422,0.01813,117260.0,117250.0,0.26584015]
[1760129241627,0.33864,117260.0,117250.0,0.26584015]
[1760129242035,0.37353,117270.0,117260.0,0.17056114]
[1760129242247,0.7389,117270.0,117260.0,0.17056114]
[1760129242464,0.25699854,117280.0,117270.0,0.1705466]
[1760129242465,0.39064988,117280.0,117270.0,0.1705466]
[1760129242691,0.39064988,117280.0,117250.0,0.9613496]
[1760129242692,0.17056114,117260.0,117250.0,0.001]
[1760129242914,0.17056114,117260.0,117240.0,0.00050304]
[1760129242915,4.99625969,117250.0,117240.0,0.00050304]
[1760129243126,5.92978727,117250.0,117240.0,0.00050304]
[1760129243350,5.97247727,117250.0,117240.0,0.00050304]
[1760129243576,5.99088483,117250.0,117240.0,0.00050304]
[1760129243793,6.38051377,117250.0,117240.0,0.00050304]
[1760129244009,6.38051417,117250.0,117240.0,0.00050304]
[1760129244226,6.3645345,117250.0,117240.0,0.00050304]
[1760129244439,5.55281915,117250.0,117240.0,0.00050304]
[1760129244660,5.4685767,117250.0,117240.0,0.00050304]
[1760129244888,0.3028927,117250.0,117240.0,0.00050304]
[1760129245162,0.28448514,117250.0,117240.0,0.00050304]
[1760129245428,0.25882569,117250.0,117240.0,0.00050304]
[1760129245652,0.25882569,117250.0,117240.0,0.00150304]
[1760129246075,0.04556,117250.0,117240.0,0.19911328]
[1760129246706,0.04556,117250.0,117240.0,0.17663328]
[1760129247910,0.21613569,117250.0,117240.0,0.17663328]
[1760129248978,0.21613569,117250.0,117240.0,0.04654]
[1760129249179,0.25804569,117250.0,117240.0,0.001]
[1760129249587,0.17059024,117240.0,117230.0,0.1901183]
[1760129249801,0.17059024,117240.0,117230.0,0.2186383]
[1760129249802,0.53567266,117240.0,117230.0,0.2186383]
[1760129250002,0.55381266,117240.0,117230.0,0.04804]
[1760129250632,0.55381266,117240.0,117230.0,0.21864479]
[1760129250778,0.55381266,117240.0,117230.0,0.21964479]
[1760129251346,0.55381266,117240.0,117230.0,0.04904]
[1760129251566,0.55381266,117240.0,117230.0,0.02952]
[1760129251979,0.55381266,117240.0,117230.0,0.21950479]
[1760129253043,0.55381266,117240.0,117230.0,0.0489]
[1760129253249,0.55381266,117240.0,117230.0,0.21950479]
[1760129254310,0.55381266,117240.0,117230.0,0.17750479]
[1760129255513,0.55381266,117240.0,117230.0,0.0069]
[1760129255711,0.17060479,117230.0,117210.0,0.35952]
[1760129255956,0.19058479,117230.0,117220.0,0.18901934]
[1760129256112,0.46632479,117230.0,117220.0,0.18901934]
[1760129256521,0.48292119,117230.0,117220.0,0.18901934]
[1760129256923,0.48292119,117230.0,117220.0,0.30111271]
[1760129256924,0.2498,117230.0,117220.0,0.30111271]
[1760129257970,0.27574,117230.0,117220.0,0.21853934]
[1760129258175,0.46632479,117230.0,117220.0,0.21853934]
[1760129258577,0.26978,117230.0,117220.0,0.21853934]
[1760129258947,0.29572,117230.0,117220.0,0.21853934]
[1760129259155,0.46632479,117230.0,117220.0,0.21953934]
[1760129261193,0.29572,117230.0,117220.0,0.21953934]
[1760129261415,0.35599213,117230.0,117220.0,0.19101934]
[1760129261646,0.31408213,117230.0,117220.0,0.21953934]
[1760129262081,0.31408213,117230.0,117220.0,0.17753934]
[1760129262304,0.32205425,117230.0,117220.0,0.17753934]
[1760129262957,0.02633425,117230.0,117220.0,0.17553934]
[1760129263174,0.3020388,117230.0,117220.0,0.17553934]
[1760129263621,0.2760988,117230.0,117220.0,0.21444934]
[1760129263841,0.26812614,117230.0,117220.0,0.21444934]
[1760129264309,0.27609961,117230.0,117220.0,0.21444934]
[1760129264737,0.27609961,117230.0,117220.0,0.17553934]
[1760129265649,0.27609961,117230.0,117220.0,1.39948784]
[1760129265650,0.02633961,117230.0,117220.0,1.39948784]
[1760129265881,0.02633961,117230.0,117220.0,1.5127618]
[1760129266109,0.12606242,117240.0,117230.0,0.51060479]
[1760129266339,0.15240844,117240.0,117230.0,1.38175992]
[1760129266800,0.0084777,117240.0,117230.0,1.46488198]
[1760129267030,0.0084777,117240.0,117230.0,1.55419167]
[1760129267031,0.00050242,117240.0,117230.0,1.55419167]
[1760129267508,0.00050242,117240.0,117230.0,1.55619167]
[1760129267986,0.00050242,117240.0,117230.0,1.49703388]
[1760129268208,0.00050242,117240.0,117230.0,0.69330875]
[1760129269351,0.00848499,117240.0,117230.0,0.69330875]
[1760129269786,0.00848499,117240.0,117230.0,0.65130875]
[1760129270554,0.02688219,117240.0,117230.0,0.65130875]
[1760129271183,0.00848499,117240.0,117230.0,0.65130875]
[1760129271399,0.0268914,117240.0,117230.0,0.65130875]
[1760129271837,0.02689793,117240.0,117230.0,0.65130875]
[1760129272244,0.00849152,117240.0,117230.0,0.65130875]
[1760129272445,0.02691172,117240.0,117230.0,0.65130875]
[1760129277139,0.02691979,117240.0,117230.0,0.65130875]
[1760129277577,0.02691979,117240.0,117230.0,1.14795618]
[1760129278230,0.28434003,117240.0,117230.0,0.002]
[1760129278444,0.28434003,117240.0,117230.0,0.0276]
[1760129278445,0.24446096,117240.0,117230.0,0.0276]
[1760129278664,0.24446096,117240.0,117230.0,0.002]
[1760129278893,0.32334225,117240.0,117230.0,0.002]
[1760129279304,0.32334241,117240.0,117230.0,0.17260479]
[1760129280005,0.26746584,117240.0,117230.0,0.19820479]
[1760129280227,0.26045705,117240.0,117230.0,0.19820479]
[1760129280417,0.36540072,117240.0,117230.0,0.19820479]
[1760129280903,0.70458896,117240.0,117230.0,0.002]
[1760129281144,1.20134936,117240.0,117230.0,0.002]
[1760129282261,1.20134936,117240.0,117230.0,0.17260479]
[1760129282262,1.20130936,117240.0,117230.0,0.17260479]
[1760129283036,0.15363169,117240.0,117230.0,0.17260479]
[1760129283313,0.66266193,117240.0,117230.0,0.17260479]
[1760129284182,0.64666584,117240.0,117230.0,0.17260479]
[1760129284404,0.63965402,117240.0,117230.0,0.17260479]
[1760129284668,0.16126526,117240.0,117230.0,0.17260479]
[1760129284900,0.16126526,117240.0,117230.0,1.17224456]
[1760129284901,0.10483306,117240.0,117230.0,1.17224456]
[1760129285122,0.08884,117240.0,117230.0,1.17224456]
[1760129285344,0.04245488,117250.0,117230.0,1.13024456]
[1760129285565,0.04245488,117260.0,117250.0,0.17057569]
[1760129285782,0.14728632,117260.0,117250.0,0.25724569]
[1760129286009,0.28859632,117260.0,117250.0,0.25724569]
[1760129286226,0.4041455,117260.0,117250.0,0.21661569]
[1760129286450,0.38114062,117260.0,117250.0,0.21661569]
[1760129286674,0.55170176,117260.0,117250.0,0.21661569]
[1760129286900,0.55170176,117260.0,117250.0,0.17057569]
[1760129287136,0.59158176,117260.0,117240.0,0.19103024]
[1760129287366,0.00471,117250.0,117240.0,0.23166024]
[1760129287592,0.00471,117250.0,117240.0,0.25726024]
[1760129288042,0.03142,117250.0,117240.0,0.21663024]
[1760129288753,0.00471,117250.0,117240.0,0.21663024]
[1760129288977,0.51371114,117260.0,117250.0,0.17057569]
[1760129289232,0.54042114,117260.0,117250.0,0.17057569]
[1760129289482,0.03142,117260.0,117250.0,0.17057569]
[1760129289748,0.34311,117260.0,117250.0,0.25724569]
[1760129289999,0.51367114,117260.0,117250.0,0.25724569]
[1760129290235,0.54038114,117260.0,117250.0,0.21661569]
[1760129291409,0.58026114,117260.0,117240.0,0.23166024]
[1760129291632,0.17057569,117250.0,117240.0,0.19103024]
[1760129291863,0.50893569,117250.0,117240.0,0.19103024]
[1760129292076,0.50893569,117250.0,117240.0,0.21663024]
[1760129292371,0.53564569,117250.0,117240.0,0.21663024]
[1760129292819,0.53564569,117250.0,117240.0,0.02044]
[1760129293041,0.53564569,117250.0,117230.0,0.19104479]
[1760129293042,0.17059024,117240.0,117230.0,0.19104479]
[1760129293263,0.19004024,117240.0,117230.0,0.14904479]
[1760129293503,0.21675024,117240.0,117230.0,0.14904479]
[1760129294175,0.21675024,117240.0,117230.0,0.15004479]
[1760129294407,0.25663024,117240.0,117230.0,0.001]
[1760129294631,0.17061775,117230.0,117220.0,0.17061934]
[1760129294869,0.50666775,117230.0,117220.0,0.17112176]
[1760129295341,0.50666775,117230.0,117220.0,0.00050242]
[1760129295555,1.31063548,117230.0,117220.0,0.00050242]
[1760129295771,0.9463502,117230.0,117220.0,0.00050242]
[1760129295994,0.86210775,117230.0,117220.0,0.00050242]
[1760129296660,0.86210775,117230.0,117220.0,0.00250242]
[1760129297316,1.66607548,117230.0,117220.0,0.00250242]
[1760129297540,6.49175948,117230.0,117220.0,0.00250242]
[1760129297983,6.79175948,117230.0,117220.0,0.00250242]
[1760129298213,6.62949968,117230.0,117220.0,0.00250242]
[1760129298457,7.33129095,117230.0,117220.0,0.00250242]
[1760129298696,7.35695569,117230.0,117220.0,0.00250242]
[1760129298922,7.35695569,117230.0,117220.0,0.00150242]
[1760129299146,7.34896442,117230.0,117220.0,0.00150242]
[1760129299378,7.37911632,117230.0,117220.0,0.00050242]
[1760129299590,7.23479632,117230.0,117220.0,0.00050242]
[1760129299805,7.68011632,117230.0,117220.0,0.00050242]
[1760129300640,6.98631632,117230.0,117220.0,0.00050242]
[1760129300860,7.68011632,117230.0,117220.0,0.00050242]
[1760129301063,0.17066302,117190.0,117180.0,0.15077314]
[1760129301298,0.55056302,117190.0,117180.0,0.17642344]
[1760129302113,0.55056302,117190.0,117180.0,0.15082344]
[1760129302316,0.59044302,117190.0,117180.0,0.15182344]
[1760129302522,0.55056302,117190.0,117180.0,0.15282344]
[1760129302985,0.59044302,117190.0,117180.0,0.0020503]
[1760129303214,0.59048302,117190.0,117180.0,0.0020503]
[1760129303429,1.16500044,117190.0,117180.0,0.0020503]
[1760129304955,1.43164044,117190.0,117180.0,0.0020503]
[1760129305184,1.52052044,117190.0,117180.0,0.0020503]
[1760129305615,1.53499668,117190.0,117180.0,0.0020503]
[1760129305842,1.61923913,117190.0,117180.0,0.0020503]
[1760129306059,1.61927913,117190.0,117180.0,0.0020503]
[1760129306498,0.92535913,117190.0,117180.0,0.0020503]
[1760129306713,1.61923913,117190.0,117180.0,0.0020503]
[1760129307153,1.63761308,117190.0,117180.0,0.0020503]
[1760129307373,1.66061796,117190.0,117180.0,0.0020503]
[1760129308001,1.08610054,117190.0,117180.0,0.0020503]
[1760129308204,1.66061796,117190.0,117180.0,0.0020503]
[1760129308413,1.69122566,117190.0,117180.0,0.0020503]
[1760129308852,0.17069195,117180.0,117160.0,0.13969233]
[1760129309061,0.46389215,117170.0,117160.0,0.1397782]
[1760129309263,0.6114661,117170.0,117160.0,0.17079259]
[1760129310107,0.6114661,117170.0,117160.0,0.17179259]
[1760129310333,0.44073395,117170.0,117160.0,0.17179259]
[1760129310542,0.46373883,117170.0,117160.0,0.17179259]
[1760129310978,0.63443098,117170.0,117160.0,0.17179259]
[1760129311414,0.69306494,117170.0,117160.0,0.00108587]
[1760129311629,6.13923607,117170.0,117160.0,0.00108587]
[1760129311838,6.13923607,117170.0,117160.0,0.00208587]
[1760129312046,5.56471865,117170.0,117160.0,0.00208587]
[1760129312472,5.53411095,117170.0,117160.0,0.00108587]
[1760129312691,5.77030837,117170.0,117160.0,0.00108587]
[1760129312914,6.76422837,117170.0,117160.0,0.00108587]
[1760129313116,6.71825866,117170.0,117160.0,0.00208587]
[1760129313321,6.72621723,117170.0,117160.0,0.00308587]
[1760129313537,0.17072129,117150.0,117140.0,0.17113587]
[1760129313743,0.54434795,117150.0,117140.0,0.17128684]
[1760129313979,0.55052385,117150.0,117140.0,0.00055097]
[1760129314392,0.55052385,117150.0,117140.0,0.17128684]
[1760129314393,0.31635315,117150.0,117140.0,0.17128684]
[1760129314581,0.65467315,117150.0,117140.0,0.00055097]
[1760129315281,0.65467315,117150.0,117140.0,0.00155097]
[1760129315489,0.69310769,117150.0,117140.0,0.00155097]
[1760129316135,0.69310769,117150.0,117140.0,0.00055097]
[1760129316352,0.66989792,117150.0,117140.0,0.00155097]
[1760129316577,0.66989792,117150.0,117130.0,0.13069702]
[1760129316798,0.10355475,117140.0,117130.0,0.13069702]
[1760129317011,0.1481887,117140.0,117130.0,0.13069702]
[1760129317443,0.10241395,117140.0,117130.0,0.13069702]
[1760129318092,0.27314982,117140.0,117130.0,0.13169702]
[1760129318518,0.27314982,117140.0,117130.0,0.13069702]
[1760129318732,0.3341825,117140.0,117130.0,0.13169702]
[1760129318944,0.16344663,117140.0,117130.0,0.13169702]
[1760129319186,0.3341825,117140.0,117130.0,0.13169702]
[1760129319385,0.3341825,117140.0,117130.0,0.06341953]
[1760129320056,0.31893052,117140.0,117120.0,0.10307634]
[1760129320257,0.68276741,117140.0,117130.0,0.17074605]
[1760129320490,0.93216741,117140.0,117130.0,0.17074605]
[1760129320698,1.46090413,117140.0,117120.0,0.1794052]
[1760129320902,0.0657722,117130.0,117120.0,0.1794052]
[1760129321105,0.15072615,117130.0,117120.0,0.1794052]
[1760129321324,0.15072615,117130.0,117120.0,0.1804052]
[1760129321778,0.15072615,117130.0,117120.0,0.1794052]
[1760129321959,0.15072615,117130.0,117120.0,0.2051152]
[1760129322163,0.17457637,117130.0,117120.0,0.1804052]
[1760129322373,0.38365637,117130.0,117120.0,0.2255252]
[1760129322579,0.47257637,117130.0,117120.0,0.83380015]
[1760129322795,0.47257637,117130.0,117120.0,0.2255252]
[1760129323046,0.47257637,117130.0,117120.0,0.83280015]
[1760129323262,0.47257637,117130.0,117120.0,0.83380015]
[1760129323477,0.42678417,117130.0,117120.0,0.2265252]
[1760129323683,0.42678417,117130.0,117120.0,0.83380015]
[1760129324355,0.04222417,117130.0,117120.0,0.83305015]
[1760129324555,0.40676417,117130.0,117120.0,0.79180015]
[1760129324970,0.42678417,117130.0,117120.0,0.79180015]
[1760129325389,0.47265474,117130.0,117120.0,0.79180015]
[1760129325618,0.47265474,117130.0,117120.0,0.80889015]
[1760129326036,0.42641474,117130.0,117120.0,0.85014015]
[1760129326249,0.08813474,117130.0,117120.0,0.85014015]
[1760129326468,0.41051459,117130.0,117120.0,1.54165755]
[1760129326687,0.07223459,117130.0,117120.0,1.54165755]
[1760129326939,0.41047459,117130.0,117120.0,1.54165755]
[1760129327363,0.07223459,117130.0,117120.0,1.54165755]
[1760129327570,0.3062809,117130.0,117120.0,1.54165755]
[1760129327997,0.3062809,117130.0,117120.0,1.52456755]
[1760129328243,0.3062809,117130.0,117120.0,1.4403251]
[1760129328449,0.29863946,117130.0,117120.0,0.2257752]
[1760129328656,0.29863946,117130.0,117120.0,0.83305015]
[1760129328872,0.3062809,117130.0,117120.0,0.83305015]
[1760129329291,0.32222273,117130.0,117120.0,0.83305015]
[1760129330182,0.33749642,117130.0,117120.0,0.83305015]
[1760129330399,0.36350642,117130.0,117120.0,0.83305015]
[1760129330610,0.33749642,117130.0,117120.0,0.83305015]
[1760129331532,0.33745642,117130.0,117120.0,0.83305015]
[1760129331964,0.42637642,117130.0,117120.0,0.79105015]
[1760129332874,0.45238642,117130.0,117120.0,0.79105015]
[1760129333306,0.42637642,117130.0,117120.0,0.79105015]
[1760129334389,0.38050585,117130.0,117120.0,0.79105015]
[1760129334667,0.40651585,117130.0,117120.0,0.79105015]
[1760129334891,0.38050585,117130.0,117120.0,0.79105015]
[1760129335110,0.42653611,117130.0,117120.0,0.79105015]
[1760129335337,0.38050585,117130.0,117120.0,0.79105015]